[Event "Titled Tuesday Blitz June 13 Late 2023"]
[White "Lashkin, Jegor"]
[Black "Vaglio Munoz, Jaime"]
[WhiteFideId "13907808"]
[BlackFideId "6500145"]
[WhiteElo "2368"]
[BlackElo "2199"]
[Result "1-0"]
[Round "3"]
[TimeControl "180+2"]
[Date "2023.06.13"]
[WhiteClock "0:00:03"]
[BlackClock "0:00:02"]
[Board "38"]

1. e4 {[%clk 0:03:00]}  d6 {[%clk 0:03:00]} 2. d4 {[%clk 0:03:00]}  Nf6 {[%clk 0:03:01]} 3. Nc3 {[%clk 0:03:00]}  e5 {[%clk 0:03:01]} 4. Nf3 {[%clk 0:03:00]}  Nbd7 {[%clk 0:02:59]} 5. Bc4 {[%clk 0:03:00]}  Be7 {[%clk 0:03:00]} 6. O-O {[%clk 0:03:00]}  O-O {[%clk 0:03:00]} 7. a4 {[%clk 0:02:59]}  exd4 {[%clk 0:02:59]} 8. Nxd4 {[%clk 0:02:57]}  Ne5 {[%clk 0:02:59]} 9. Be2 {[%clk 0:02:53]}  Re8 {[%clk 0:02:55]} 10. f4 {[%clk 0:02:49]}  Ng6 {[%clk 0:02:54]} 11. Re1 {[%clk 0:02:27]}  Bf8 {[%clk 0:02:50]} 12. Bf1 {[%clk 0:02:19]}  Bd7 {[%clk 0:02:41]} 13. a5 {[%clk 0:02:17]}  a6 {[%clk 0:02:41]} 14. g3 {[%clk 0:01:49]}  c5 {[%clk 0:02:41]} 15. Nb3 {[%clk 0:01:45]}  Bc6 {[%clk 0:02:39]} 16. Bg2 {[%clk 0:01:46]}  h5 {[%clk 0:02:32]} 17. f5 {[%clk 0:01:42]}  Ne5 {[%clk 0:02:31]} 18. Bg5 {[%clk 0:01:42]}  Be7 {[%clk 0:02:00]} 19. Bf4 {[%clk 0:01:00]}  b5 {[%clk 0:01:32]} 20. axb6 {[%clk 0:00:51]}  Qxb6 {[%clk 0:01:31]} 21. h3 {[%clk 0:00:50]}  Nc4 {[%clk 0:01:24]} 22. Rb1 {[%clk 0:00:46]}  a5 {[%clk 0:01:13]} 23. Nd2 {[%clk 0:00:45]}  Nxd2 {[%clk 0:01:06]} 24. Qxd2 {[%clk 0:00:46]}  Qb7 {[%clk 0:01:02]} 25. Bf3 {[%clk 0:00:33]}  Qb4 {[%clk 0:00:50]} 26. Qg2 {[%clk 0:00:21]}  Nd7 {[%clk 0:00:45]} 27. Bxh5 {[%clk 0:00:20]}  Bf6 {[%clk 0:00:40]} 28. Bd2 {[%clk 0:00:19]}  Qb7 {[%clk 0:00:37]} 29. Bf3 {[%clk 0:00:19]}  Ne5 {[%clk 0:00:38]} 30. Be2 {[%clk 0:00:19]}  Rad8 {[%clk 0:00:31]} 31. Nd5 {[%clk 0:00:14]}  Bxd5 {[%clk 0:00:28]} 32. exd5 {[%clk 0:00:15]}  Re7 {[%clk 0:00:20]} 33. g4 {[%clk 0:00:12]}  Bh4 {[%clk 0:00:20]} 34. Red1 {[%clk 0:00:06]}  Rde8 {[%clk 0:00:20]} 35. Bxa5 {[%clk 0:00:04]}  Ng6 {[%clk 0:00:17]} 36. Bf1 {[%clk 0:00:03]}  Nf4 {[%clk 0:00:17]} 37. Qf3 {[%clk 0:00:03]}  g5 {[%clk 0:00:15]} 38. Bd2 {[%clk 0:00:03]}  Re4 {[%clk 0:00:13]} 39. c4 {[%clk 0:00:02]}  Ne2+ {[%clk 0:00:10]} 40. Kg2 {[%clk 0:00:01]}  Nd4 {[%clk 0:00:11]} 41. Qd3 {[%clk 0:00:01]}  Re2+ {[%clk 0:00:04]} 42. Kh1 {[%clk 0:00:02]}  Qe7 {[%clk 0:00:04]} 43. Bxe2 {[%clk 0:00:02]}  Nxe2 {[%clk 0:00:04]} 44. Be1 {[%clk 0:00:02]}  Nf4 {[%clk 0:00:03]} 45. Qf3 {[%clk 0:00:02]}  Bxe1 {[%clk 0:00:02]} 46. Rxe1 {[%clk 0:00:03]}  Qxe1+ {[%clk 0:00:02]} 47. Rxe1 {[%clk 0:00:04]}  Rxe1+ {[%clk 0:00:03]} 48. Kh2 {[%clk 0:00:05]}  Re2+ {[%clk 0:00:04]} 49. Kg1 {[%clk 0:00:05]}  Re1+ {[%clk 0:00:04]} 50. Kf2 {[%clk 0:00:05]}  Rb1 {[%clk 0:00:03]} 51. Qc3 {[%clk 0:00:03]}  Rxb2+ {[%clk 0:00:04]} 52. Kf3 {[%clk 0:00:02]}  Rh2 {[%clk 0:00:04]} 53. Qf6 {[%clk 0:00:02]}  Rxh3+ {[%clk 0:00:02]} 54. Kf2 {[%clk 0:00:03]}  Nd3+ {[%clk 0:00:02]} 55. Kg1 {[%clk 0:00:02]}  Rg3+ {[%clk 0:00:01]} 56. Kh2 {[%clk 0:00:03]}  Rxg4 {[%clk 0:00:02]} 57. Qxd6 {[%clk 0:00:03]}  Rxc4 {[%clk 0:00:02]} 58. Qd8+ {[%clk 0:00:02]}  Kh7 {[%clk 0:00:02]} 59. Qxg5 {[%clk 0:00:02]}  Nf4 {[%clk 0:00:01]} 60. Qh4+ {[%clk 0:00:01]}  Kg7 {[%clk 0:00:02]} 61. Qg5+ {[%clk 0:00:01]}  Kh7 {[%clk 0:00:02]} 62. d6 {[%clk 0:00:01]}  Rc2+ {[%clk 0:00:01]} 63. Kg3 {[%clk 0:00:01]}  Ne2+ {[%clk 0:00:01]} 64. Kg4 {[%clk 0:00:01]}  Nd4 {[%clk 0:00:01]} 65. Qh5+ {[%clk 0:00:01]}  Kg7 {[%clk 0:00:02]} 66. Qg5+ {[%clk 0:00:01]}  Kh7 {[%clk 0:00:02]} 67. Qf6 {[%clk 0:00:01]}  Rg2+ {[%clk 0:00:02]} 68. Kh3 {[%clk 0:00:01]}  Rg7 {[%clk 0:00:02]} 69. d7 {[%clk 0:00:02]}  Ne2 {[%clk 0:00:01]} 70. Qh4+ {[%clk 0:00:02]}  Kg8 {[%clk 0:00:02]} 71. d8=Q# {[%clk 0:00:03]} 1-0


[Site "https://www.chess.com"]

[Event "Titled Tuesday Blitz June 13 Late 2023"]
[White "Bazeev, German"]
[Black "Osmonbekov, Talaibek"]
[WhiteFideId "24119350"]
[BlackFideId "2017253"]
[WhiteElo "2466"]
[BlackElo "2135"]
[Result "1-0"]
[Round "3"]
[TimeControl "180+2"]
[Date "2023.06.13"]
[WhiteClock "0:00:46"]
[BlackClock "0:00:00"]
[Board "39"]

1. c4 {[%clk 0:03:00]}  e5 {[%clk 0:02:59]} 2. Nc3 {[%clk 0:03:01]}  d6 {[%clk 0:02:59]} 3. Nf3 {[%clk 0:03:00]}  f5 {[%clk 0:02:59]} 4. d4 {[%clk 0:03:01]}  e4 {[%clk 0:02:59]} 5. Ng5 {[%clk 0:03:02]}  Be7 {[%clk 0:02:51]} 6. h4 {[%clk 0:03:02]}  c6 {[%clk 0:02:33]} 7. e3 {[%clk 0:02:34]}  Nf6 {[%clk 0:02:31]} 8. Nh3 {[%clk 0:02:33]}  Be6 {[%clk 0:02:10]} 9. Nf4 {[%clk 0:02:26]}  Bf7 {[%clk 0:02:08]} 10. Be2 {[%clk 0:02:24]}  O-O {[%clk 0:02:04]} 11. Bd2 {[%clk 0:02:20]}  a5 {[%clk 0:02:04]} 12. a3 {[%clk 0:02:17]}  Na6 {[%clk 0:02:04]} 13. h5 {[%clk 0:02:12]}  Nc7 {[%clk 0:01:53]} 14. g4 {[%clk 0:02:04]}  fxg4 {[%clk 0:01:43]} 15. Bxg4 {[%clk 0:02:05]}  Bxc4 {[%clk 0:01:40]} 16. Rg1 {[%clk 0:02:02]}  Kh8 {[%clk 0:01:39]} 17. Bf5 {[%clk 0:01:56]}  Bf7 {[%clk 0:01:09]} 18. Nxe4 {[%clk 0:01:43]}  Nxe4 {[%clk 0:01:07]} 19. Bxe4 {[%clk 0:01:44]}  Ne6 {[%clk 0:00:55]} 20. Ng6+ {[%clk 0:01:41]}  Bxg6 {[%clk 0:00:53]} 21. hxg6 {[%clk 0:01:39]}  h6 {[%clk 0:00:52]} 22. Qg4 {[%clk 0:01:13]}  Ng5 {[%clk 0:00:52]} 23. Bg2 {[%clk 0:01:10]}  d5 {[%clk 0:00:51]} 24. Rh1 {[%clk 0:01:06]}  Qc8 {[%clk 0:00:32]} 25. Qxc8 {[%clk 0:01:04]}  Raxc8 {[%clk 0:00:31]} 26. Bxa5 {[%clk 0:01:03]}  Rf6 {[%clk 0:00:19]} 27. f4 {[%clk 0:01:03]}  Ne4 {[%clk 0:00:18]} 28. Bxe4 {[%clk 0:01:03]}  dxe4 {[%clk 0:00:19]} 29. Rg1 {[%clk 0:01:01]}  c5 {[%clk 0:00:15]} 30. Bc3 {[%clk 0:00:55]}  Rcc6 {[%clk 0:00:08]} 31. d5 {[%clk 0:00:48]}  Rxg6 {[%clk 0:00:08]} 32. dxc6 {[%clk 0:00:49]}  Rxg1+ {[%clk 0:00:07]} 33. Kf2 {[%clk 0:00:49]}  Rg6 {[%clk 0:00:05]} 34. c7 {[%clk 0:00:44]}  Rc6 {[%clk 0:00:02]} 35. Be5 {[%clk 0:00:45]}  Bf6 {[%clk 0:00:00]} 36. Rd1 {[%clk 0:00:46]} 1-0


[Site "https://www.chess.com"]

[Event "Titled Tuesday Blitz June 13 Late 2023"]
[White "Klinova, Masha"]
[Black "Sarana, Alexey"]
[WhiteFideId "2802015"]
[BlackFideId "24133795"]
[WhiteElo "2241"]
[BlackElo "2714"]
[Result "0-1"]
[Round "3"]
[TimeControl "180+2"]
[Date "2023.06.13"]
[WhiteClock "0:00:10"]
[BlackClock "0:02:00"]
[Board "40"]

1. e4 {[%clk 0:03:00]}  e5 {[%clk 0:02:56]} 2. Nf3 {[%clk 0:03:00]}  Nc6 {[%clk 0:02:57]} 3. Bc4 {[%clk 0:03:00]}  Bc5 {[%clk 0:02:56]} 4. d3 {[%clk 0:03:00]}  Nf6 {[%clk 0:02:55]} 5. O-O {[%clk 0:02:59]}  d6 {[%clk 0:02:55]} 6. a4 {[%clk 0:02:59]}  a6 {[%clk 0:02:54]} 7. Be3 {[%clk 0:02:59]}  Bxe3 {[%clk 0:02:52]} 8. fxe3 {[%clk 0:02:59]}  O-O {[%clk 0:02:51]} 9. Nc3 {[%clk 0:02:58]}  Be6 {[%clk 0:02:50]} 10. Bxe6 {[%clk 0:02:55]}  fxe6 {[%clk 0:02:51]} 11. Qe2 {[%clk 0:02:52]}  Qe7 {[%clk 0:02:51]} 12. h3 {[%clk 0:02:49]}  d5 {[%clk 0:02:51]} 13. exd5 {[%clk 0:02:44]}  exd5 {[%clk 0:02:52]} 14. e4 {[%clk 0:02:44]}  dxe4 {[%clk 0:02:46]} 15. Nxe4 {[%clk 0:02:42]}  Nd5 {[%clk 0:02:46]} 16. Qf2 {[%clk 0:02:30]}  Nd4 {[%clk 0:02:46]} 17. Kh2 {[%clk 0:01:59]}  Nxf3+ {[%clk 0:02:45]} 18. gxf3 {[%clk 0:01:58]}  Rf5 {[%clk 0:02:45]} 19. Rg1 {[%clk 0:01:56]}  Raf8 {[%clk 0:02:45]} 20. Rg3 {[%clk 0:01:56]}  g6 {[%clk 0:02:45]} 21. Rf1 {[%clk 0:01:51]}  Kh8 {[%clk 0:02:44]} 22. Qc5 {[%clk 0:01:48]}  Qd8 {[%clk 0:02:41]} 23. a5 {[%clk 0:01:38]}  Rh5 {[%clk 0:02:40]} 24. Re1 {[%clk 0:01:32]}  Nf4 {[%clk 0:02:20]} 25. Nf2 {[%clk 0:01:24]}  Ne6 {[%clk 0:02:15]} 26. Qc3 {[%clk 0:01:14]}  Nd4 {[%clk 0:02:15]} 27. Re3 {[%clk 0:01:13]}  Qd5 {[%clk 0:02:10]} 28. Qxc7 {[%clk 0:01:01]}  Nxf3+ {[%clk 0:02:07]} 29. Rgxf3 {[%clk 0:00:53]}  Rxf3 {[%clk 0:02:08]} 30. Qc8+ {[%clk 0:00:45]}  Kg7 {[%clk 0:02:06]} 31. Rxf3 {[%clk 0:00:36]}  Qxf3 {[%clk 0:02:07]} 32. Qc7+ {[%clk 0:00:34]}  Qf7 {[%clk 0:02:07]} 33. Qc5 {[%clk 0:00:31]}  Qf4+ {[%clk 0:02:05]} 34. Kg2 {[%clk 0:00:30]}  Rf5 {[%clk 0:02:05]} 35. Qe7+ {[%clk 0:00:17]}  Rf7 {[%clk 0:02:04]} 36. Qc5 {[%clk 0:00:17]}  h5 {[%clk 0:02:02]} 37. b4 {[%clk 0:00:10]}  h4 {[%clk 0:02:00]} 0-1


[Site "https://www.chess.com"]

[Event "Titled Tuesday Blitz June 13 Late 2023"]
[White "Bjelobrk, Igor"]
[Black "Anton Guijarro, David"]
[WhiteFideId "4300726"]
[BlackFideId "2285525"]
[WhiteElo "2319"]
[BlackElo "2618"]
[Result "0-1"]
[Round "3"]
[TimeControl "180+2"]
[Date "2023.06.13"]
[WhiteClock "0:00:04"]
[BlackClock "0:00:08"]
[Board "42"]

1. d4 {[%clk 0:03:00]}  d5 {[%clk 0:03:00]} 2. c4 {[%clk 0:03:00]}  e6 {[%clk 0:03:00]} 3. Nf3 {[%clk 0:03:00]}  c6 {[%clk 0:03:00]} 4. g3 {[%clk 0:02:58]}  dxc4 {[%clk 0:03:00]} 5. Bg2 {[%clk 0:02:57]}  b5 {[%clk 0:03:00]} 6. O-O {[%clk 0:02:56]}  Nd7 {[%clk 0:03:00]} 7. b3 {[%clk 0:02:47]}  cxb3 {[%clk 0:02:59]} 8. Qxb3 {[%clk 0:02:48]}  Bb7 {[%clk 0:02:58]} 9. Rd1 {[%clk 0:02:37]}  Ngf6 {[%clk 0:02:53]} 10. Ne5 {[%clk 0:02:29]}  Nxe5 {[%clk 0:02:53]} 11. dxe5 {[%clk 0:02:29]}  Nd7 {[%clk 0:02:54]} 12. Nc3 {[%clk 0:02:25]}  a6 {[%clk 0:02:43]} 13. Ne4 {[%clk 0:02:19]}  c5 {[%clk 0:02:27]} 14. Bg5 {[%clk 0:02:00]}  Qc7 {[%clk 0:02:19]} 15. Rd2 {[%clk 0:01:58]}  c4 {[%clk 0:02:13]} 16. Qe3 {[%clk 0:01:57]}  Bb4 {[%clk 0:02:04]} 17. Rd4 {[%clk 0:01:56]}  Nxe5 {[%clk 0:01:58]} 18. a3 {[%clk 0:01:42]}  Ng4 {[%clk 0:00:54]} 19. Qf3 {[%clk 0:01:13]}  Bc5 {[%clk 0:00:54]} 20. Qxg4 {[%clk 0:00:50]}  Bxd4 {[%clk 0:00:54]} 21. Bf4 {[%clk 0:00:48]}  f5 {[%clk 0:00:49]} 22. Qh5+ {[%clk 0:00:33]}  g6 {[%clk 0:00:47]} 23. Qh4 {[%clk 0:00:20]}  e5 {[%clk 0:00:42]} 24. Nf6+ {[%clk 0:00:18]}  Kf7 {[%clk 0:00:42]} 25. Rd1 {[%clk 0:00:15]}  Bxg2 {[%clk 0:00:33]} 26. Nxh7 {[%clk 0:00:14]}  Qe7 {[%clk 0:00:22]} 27. Bg5 {[%clk 0:00:14]}  Qb7 {[%clk 0:00:22]} 28. Be3 {[%clk 0:00:11]}  Bh1 {[%clk 0:00:22]} 29. Qf6+ {[%clk 0:00:08]}  Ke8 {[%clk 0:00:15]} 30. Qxh8+ {[%clk 0:00:07]}  Kd7 {[%clk 0:00:14]} 31. Qg7+ {[%clk 0:00:08]}  Kc6 {[%clk 0:00:14]} 32. Qxb7+ {[%clk 0:00:07]}  Kxb7 {[%clk 0:00:14]} 33. Kxh1 {[%clk 0:00:08]}  Bxe3 {[%clk 0:00:14]} 34. fxe3 {[%clk 0:00:09]}  a5 {[%clk 0:00:14]} 35. Nf6 {[%clk 0:00:08]}  Kc6 {[%clk 0:00:14]} 36. Nd7 {[%clk 0:00:07]}  b4 {[%clk 0:00:12]} 37. Nxe5+ {[%clk 0:00:07]}  Kc5 {[%clk 0:00:13]} 38. a4 {[%clk 0:00:06]}  b3 {[%clk 0:00:13]} 39. Rc1 {[%clk 0:00:06]}  b2 {[%clk 0:00:11]} 40. Rb1 {[%clk 0:00:06]}  c3 {[%clk 0:00:11]} 41. Nd3+ {[%clk 0:00:07]}  Kd5 {[%clk 0:00:04]} 42. Ne1 {[%clk 0:00:06]}  Rb8 {[%clk 0:00:04]} 43. Nc2 {[%clk 0:00:06]}  Kc4 {[%clk 0:00:04]} 44. Nd4 {[%clk 0:00:04]}  Rd8 {[%clk 0:00:04]} 45. Nc2 {[%clk 0:00:03]}  Kb3 {[%clk 0:00:04]} 46. Nd4+ {[%clk 0:00:03]}  Ka2 {[%clk 0:00:04]} 47. Rd1 {[%clk 0:00:01]}  b1=Q {[%clk 0:00:04]} 48. Rxb1 {[%clk 0:00:01]}  Kxb1 {[%clk 0:00:05]} 49. Kg2 {[%clk 0:00:02]}  c2 {[%clk 0:00:06]} 50. Nxc2 {[%clk 0:00:02]}  Kxc2 {[%clk 0:00:06]} 51. h4 {[%clk 0:00:03]}  Kb3 {[%clk 0:00:07]} 52. Kf3 {[%clk 0:00:04]}  Kxa4 {[%clk 0:00:07]} 53. e4 {[%clk 0:00:05]}  fxe4+ {[%clk 0:00:07]} 54. Kxe4 {[%clk 0:00:05]}  Kb5 {[%clk 0:00:08]} 55. g4 {[%clk 0:00:04]}  a4 {[%clk 0:00:08]} 0-1


[Site "https://www.chess.com"]

[Event "Titled Tuesday Blitz June 13 Late 2023"]
[White "Ibarra Jerez, Jose Carlos"]
[Black "Manukyan, Sargis A."]
[WhiteFideId "2226332"]
[BlackFideId "13303970"]
[WhiteElo "2631"]
[BlackElo "2187"]
[Result "1-0"]
[Round "3"]
[TimeControl "180+2"]
[Date "2023.06.13"]
[WhiteClock "0:01:16"]
[BlackClock "0:00:59"]
[Board "43"]

1. e4 {[%clk 0:03:00]}  c5 {[%clk 0:03:00]} 2. Nc3 {[%clk 0:03:00]}  d6 {[%clk 0:02:58]} 3. d4 {[%clk 0:03:00]}  cxd4 {[%clk 0:02:59]} 4. Qxd4 {[%clk 0:03:00]}  Nc6 {[%clk 0:02:59]} 5. Qd2 {[%clk 0:03:00]}  g6 {[%clk 0:03:00]} 6. b3 {[%clk 0:03:01]}  Bh6 {[%clk 0:03:01]} 7. f4 {[%clk 0:03:02]}  Nf6 {[%clk 0:02:59]} 8. Bb2 {[%clk 0:03:01]}  O-O {[%clk 0:02:59]} 9. O-O-O {[%clk 0:03:02]}  e5 {[%clk 0:03:00]} 10. g3 {[%clk 0:03:02]}  Nh5 {[%clk 0:03:00]} 11. Nge2 {[%clk 0:03:01]}  exf4 {[%clk 0:03:00]} 12. gxf4 {[%clk 0:03:01]}  Qh4 {[%clk 0:03:00]} 13. Nd5 {[%clk 0:03:01]}  Be6 {[%clk 0:02:55]} 14. Kb1 {[%clk 0:02:45]}  Bxd5 {[%clk 0:02:54]} 15. Qxd5 {[%clk 0:02:16]}  Nxf4 {[%clk 0:02:48]} 16. Qb5 {[%clk 0:02:16]}  Nxe2 {[%clk 0:02:42]} 17. Bxe2 {[%clk 0:02:15]}  Qxe4 {[%clk 0:02:37]} 18. Bc4 {[%clk 0:02:08]}  Ne5 {[%clk 0:02:23]} 19. Rhe1 {[%clk 0:02:00]}  Qf5 {[%clk 0:02:21]} 20. Rxd6 {[%clk 0:01:46]}  Rae8 {[%clk 0:01:23]} 21. Rxe5 {[%clk 0:01:35]}  Qg4 {[%clk 0:01:05]} 22. Rxe8 {[%clk 0:01:22]}  Qg1+ {[%clk 0:01:04]} 23. Bf1 {[%clk 0:01:21]}  Rxe8 {[%clk 0:01:02]} 24. Qxe8+ {[%clk 0:01:20]}  Bf8 {[%clk 0:00:59]} 25. Rd1 {[%clk 0:01:16]} 1-0


[Site "https://www.chess.com"]

[Event "Titled Tuesday Blitz June 13 Late 2023"]
[White "Kramnik, Vladimir"]
[Black "Hajiyev, Kanan"]
[WhiteFideId "4101588"]
[BlackFideId "13404148"]
[WhiteElo "2703"]
[BlackElo "2115"]
[Result "1-0"]
[Round "3"]
[TimeControl "180+2"]
[Date "2023.06.13"]
[WhiteClock "0:01:49"]
[BlackClock "0:00:21"]
[Board "45"]

1. e4 {[%clk 0:03:00]}  c6 {[%clk 0:02:48]} 2. d4 {[%clk 0:02:59]}  d5 {[%clk 0:02:49]} 3. Nd2 {[%clk 0:03:00]}  a6 {[%clk 0:02:40]} 4. c3 {[%clk 0:02:56]}  h6 {[%clk 0:02:38]} 5. Bd3 {[%clk 0:02:52]}  dxe4 {[%clk 0:02:38]} 6. Nxe4 {[%clk 0:02:51]}  Bf5 {[%clk 0:02:38]} 7. Qf3 {[%clk 0:02:41]}  e6 {[%clk 0:02:37]} 8. Ne2 {[%clk 0:02:39]}  Nf6 {[%clk 0:02:37]} 9. Nxf6+ {[%clk 0:02:37]}  Qxf6 {[%clk 0:02:38]} 10. Bxf5 {[%clk 0:02:35]}  Qxf5 {[%clk 0:02:39]} 11. Qxf5 {[%clk 0:02:34]}  exf5 {[%clk 0:02:40]} 12. O-O {[%clk 0:02:29]}  Bd6 {[%clk 0:01:52]} 13. Bf4 {[%clk 0:02:20]}  Ke7 {[%clk 0:01:43]} 14. Rfe1 {[%clk 0:02:18]}  Bxf4 {[%clk 0:01:36]} 15. Nxf4+ {[%clk 0:02:18]}  Kd6 {[%clk 0:01:31]} 16. c4 {[%clk 0:02:18]}  Nd7 {[%clk 0:01:17]} 17. c5+ {[%clk 0:02:17]}  Kc7 {[%clk 0:01:18]} 18. Re7 {[%clk 0:02:05]}  Rhf8 {[%clk 0:01:17]} 19. d5 {[%clk 0:02:02]}  cxd5 {[%clk 0:01:08]} 20. Nxd5+ {[%clk 0:01:59]}  Kc6 {[%clk 0:01:08]} 21. Nb4+ {[%clk 0:01:52]}  Kxc5 {[%clk 0:01:03]} 22. Rxd7 {[%clk 0:01:51]}  Kxb4 {[%clk 0:01:02]} 23. Rxb7+ {[%clk 0:01:51]}  Ka5 {[%clk 0:00:21]} 24. a4 {[%clk 0:01:49]} 1-0


[Site "https://www.chess.com"]

[Event "Titled Tuesday Blitz June 13 Late 2023"]
[White "Mendez Fortes, Eduardo Jesus"]
[Black "Xiong, Jeffery"]
[WhiteFideId "3502376"]
[BlackFideId "2047640"]
[WhiteElo "2307"]
[BlackElo "2726"]
[Result "0-1"]
[Round "3"]
[TimeControl "180+2"]
[Date "2023.06.13"]
[WhiteClock "0:00:10"]
[BlackClock "0:01:41"]
[Board "46"]

1. e4 {[%clk 0:02:57]}  c5 {[%clk 0:03:00]} 2. Nf3 {[%clk 0:02:57]}  d6 {[%clk 0:03:00]} 3. d4 {[%clk 0:02:58]}  cxd4 {[%clk 0:03:01]} 4. Nxd4 {[%clk 0:02:58]}  Nf6 {[%clk 0:03:02]} 5. Nc3 {[%clk 0:02:59]}  a6 {[%clk 0:03:03]} 6. Bg5 {[%clk 0:03:00]}  e6 {[%clk 0:03:01]} 7. f4 {[%clk 0:02:59]}  b5 {[%clk 0:02:51]} 8. e5 {[%clk 0:02:59]}  dxe5 {[%clk 0:02:52]} 9. fxe5 {[%clk 0:02:59]}  Qc7 {[%clk 0:02:53]} 10. exf6 {[%clk 0:03:00]}  Qe5+ {[%clk 0:02:53]} 11. Be2 {[%clk 0:03:00]}  Qxg5 {[%clk 0:02:53]} 12. O-O {[%clk 0:03:01]}  Ra7 {[%clk 0:02:47]} 13. Qd3 {[%clk 0:03:01]}  Rd7 {[%clk 0:02:45]} 14. Ne4 {[%clk 0:03:01]}  Qe5 {[%clk 0:02:43]} 15. Nf3 {[%clk 0:03:02]}  Qc7 {[%clk 0:02:37]} 16. Qe3 {[%clk 0:03:01]}  Bb7 {[%clk 0:02:36]} 17. c4 {[%clk 0:02:56]}  b4 {[%clk 0:02:25]} 18. Rad1 {[%clk 0:02:47]}  Bxe4 {[%clk 0:02:24]} 19. Qxe4 {[%clk 0:02:48]}  gxf6 {[%clk 0:02:25]} 20. Kh1 {[%clk 0:02:37]}  f5 {[%clk 0:02:17]} 21. Qe3 {[%clk 0:02:32]}  Bc5 {[%clk 0:02:17]} 22. Qg5 {[%clk 0:02:29]}  Rf8 {[%clk 0:02:03]} 23. Qg7 {[%clk 0:02:14]}  Rxd1 {[%clk 0:01:50]} 24. Rxd1 {[%clk 0:02:14]}  Nc6 {[%clk 0:01:48]} 25. Qxh7 {[%clk 0:01:49]}  Ne5 {[%clk 0:01:48]} 26. Ng5 {[%clk 0:01:46]}  Be7 {[%clk 0:01:48]} 27. Qg7 {[%clk 0:00:49]}  Qc5 {[%clk 0:01:48]} 28. Nh7 {[%clk 0:00:37]}  Qe3 {[%clk 0:01:43]} 29. Nf6+ {[%clk 0:00:20]}  Bxf6 {[%clk 0:01:43]} 30. Qxf6 {[%clk 0:00:21]}  Nd7 {[%clk 0:01:41]} 31. Rxd7 {[%clk 0:00:18]}  Kxd7 {[%clk 0:01:41]} 32. Bf1 {[%clk 0:00:10]}  Qf2 {[%clk 0:01:41]} 0-1


[Site "https://www.chess.com"]

[Event "Titled Tuesday Blitz June 13 Late 2023"]
[White "Pap, Gyula"]
[Black "Perez, Maximiliano"]
[WhiteFideId "725323"]
[BlackFideId "117234"]
[WhiteElo "2519"]
[BlackElo "2334"]
[Result "1-0"]
[Round "3"]
[TimeControl "180+2"]
[Date "2023.06.13"]
[WhiteClock "0:00:11"]
[BlackClock "0:00:05"]
[Board "48"]

1. d4 {[%clk 0:03:00]}  Nf6 {[%clk 0:02:59]} 2. c4 {[%clk 0:03:01]}  e6 {[%clk 0:02:59]} 3. Nc3 {[%clk 0:03:01]}  Bb4 {[%clk 0:02:59]} 4. Qb3 {[%clk 0:03:01]}  c5 {[%clk 0:02:58]} 5. dxc5 {[%clk 0:03:01]}  Na6 {[%clk 0:02:57]} 6. a3 {[%clk 0:03:00]}  Bxc3+ {[%clk 0:02:50]} 7. Qxc3 {[%clk 0:03:01]}  Nxc5 {[%clk 0:02:50]} 8. b4 {[%clk 0:03:01]}  Nce4 {[%clk 0:02:49]} 9. Qb2 {[%clk 0:03:01]}  d5 {[%clk 0:02:44]} 10. c5 {[%clk 0:03:00]}  d4 {[%clk 0:02:24]} 11. e3 {[%clk 0:03:00]}  Ng4 {[%clk 0:02:08]} 12. Nh3 {[%clk 0:02:51]}  Qh4 {[%clk 0:00:59]} 13. Qxd4 {[%clk 0:02:11]}  f5 {[%clk 0:00:19]} 14. Qxg7 {[%clk 0:01:43]}  Rf8 {[%clk 0:00:19]} 15. g3 {[%clk 0:01:43]}  Qd8 {[%clk 0:00:19]} 16. f3 {[%clk 0:01:39]}  Rf7 {[%clk 0:00:13]} 17. Qb2 {[%clk 0:01:15]}  Qd5 {[%clk 0:00:11]} 18. fxe4 {[%clk 0:01:01]}  fxe4 {[%clk 0:00:11]} 19. Nf4 {[%clk 0:00:49]}  Qf5 {[%clk 0:00:07]} 20. Bh3 {[%clk 0:00:41]}  e5 {[%clk 0:00:07]} 21. O-O {[%clk 0:00:41]}  exf4 {[%clk 0:00:06]} 22. Rxf4 {[%clk 0:00:42]}  Qg6 {[%clk 0:00:05]} 23. Bxg4 {[%clk 0:00:19]}  Bxg4 {[%clk 0:00:04]} 24. Qh8+ {[%clk 0:00:17]}  Ke7 {[%clk 0:00:04]} 25. Qxa8 {[%clk 0:00:16]}  Rxf4 {[%clk 0:00:04]} 26. Qxb7+ {[%clk 0:00:16]}  Kf8 {[%clk 0:00:03]} 27. Qb8+ {[%clk 0:00:14]}  Kg7 {[%clk 0:00:04]} 28. Bb2+ {[%clk 0:00:13]}  Kh6 {[%clk 0:00:04]} 29. Qxf4+ {[%clk 0:00:11]}  Kh5 {[%clk 0:00:05]} 1-0


[Site "https://www.chess.com"]

[Event "Titled Tuesday Blitz June 13 Late 2023"]
[White "Chigaev, Maksim"]
[Black "Piesik, Piotr"]
[WhiteFideId "4108116"]
[BlackFideId "1136194"]
[WhiteElo "2561"]
[BlackElo "2303"]
[Result "1-0"]
[Round "3"]
[TimeControl "180+2"]
[Date "2023.06.13"]
[WhiteClock "0:01:38"]
[BlackClock "0:01:10"]
[Board "49"]

1. g3 {[%clk 0:03:00]}  Nf6 {[%clk 0:02:55]} 2. Bg2 {[%clk 0:03:01]}  d5 {[%clk 0:02:55]} 3. Nf3 {[%clk 0:03:01]}  g6 {[%clk 0:02:55]} 4. O-O {[%clk 0:03:01]}  Bg7 {[%clk 0:02:56]} 5. d4 {[%clk 0:03:01]}  O-O {[%clk 0:02:56]} 6. c4 {[%clk 0:03:02]}  dxc4 {[%clk 0:02:54]} 7. Na3 {[%clk 0:02:58]}  c3 {[%clk 0:02:54]} 8. bxc3 {[%clk 0:02:57]}  c5 {[%clk 0:02:55]} 9. e3 {[%clk 0:02:56]}  Nc6 {[%clk 0:02:50]} 10. Bb2 {[%clk 0:02:55]}  Bf5 {[%clk 0:02:47]} 11. Qe2 {[%clk 0:02:49]}  Be4 {[%clk 0:02:43]} 12. Rfd1 {[%clk 0:02:49]}  Qa5 {[%clk 0:02:40]} 13. Nc4 {[%clk 0:02:41]}  Qa6 {[%clk 0:02:39]} 14. Bf1 {[%clk 0:02:35]}  b5 {[%clk 0:02:27]} 15. Ncd2 {[%clk 0:02:31]}  c4 {[%clk 0:02:03]} 16. Nxe4 {[%clk 0:02:18]}  Nxe4 {[%clk 0:02:04]} 17. a4 {[%clk 0:02:18]}  Na5 {[%clk 0:01:43]} 18. Qc2 {[%clk 0:02:08]}  Nb3 {[%clk 0:01:36]} 19. Qxe4 {[%clk 0:02:03]}  Nxa1 {[%clk 0:01:35]} 20. Rxa1 {[%clk 0:02:04]}  bxa4 {[%clk 0:01:35]} 21. Ba3 {[%clk 0:01:53]}  Rab8 {[%clk 0:01:32]} 22. Bb4 {[%clk 0:01:51]}  Rfe8 {[%clk 0:01:21]} 23. Nd2 {[%clk 0:01:47]}  Rbc8 {[%clk 0:01:20]} 24. Qd5 {[%clk 0:01:40]}  e6 {[%clk 0:01:10]} 25. Qa5 {[%clk 0:01:38]} 1-0


[Site "https://www.chess.com"]